bitfinex/quotes_SOLUSD_20230101
["timestamp","ask_amount","ask_price","bid_price","bid_amount"]
[1672549010508,40.0,9.8711,9.8612,40.0]
[1672549010717,76.07,9.871,9.8612,40.0]
[1672549010923,40.0,9.8709,9.8615,40.0]
[1672549011142,40.0,9.8707,9.8615,40.0]
[1672549011366,76.07,9.8706,9.8615,40.0]
[1672549011683,40.0,9.8705,9.8618,40.0]
[1672549011875,40.0,9.8703,9.8618,40.0]
[1672549012207,40.0,9.8701,9.8621,40.0]
[1672549012418,76.07,9.87,9.8621,40.0]
[1672549012616,76.07,9.87,9.8622,22.8626]
[1672549012816,40.0,9.8703,9.8622,22.8626]
[1672549013027,40.0,9.8701,9.8622,22.8626]
[1672549013233,76.07,9.87,9.8623,22.8626]
[1672549013462,40.0,9.8699,9.8624,40.0]
[1672549013661,40.0,9.8697,9.8624,343.4]
[1672549013869,76.08,9.8696,9.8625,22.8626]
[1672549014208,40.0,9.8695,9.8626,40.0]
[1672549014403,76.08,9.8694,9.8626,40.0]
[1672549014936,76.08,9.8696,9.8626,40.0]
[1672549015154,76.07,9.8702,9.8626,40.0]
[1672549015455,40.0,9.8709,9.8628,40.0]
[1672549015666,40.0,9.8707,9.8628,40.0]
[1672549015865,76.07,9.8706,9.863,40.0]
[1672549016077,40.0,9.8705,9.863,40.0]
[1672549016294,40.0,9.8703,9.863,40.0]
[1672549016614,76.07,9.8702,9.8631,23.4934]
[1672549016825,40.0,9.8705,9.8631,23.4934]
[1672549016826,40.0,9.8703,9.8631,23.4934]
[1672549017139,40.0,9.8701,9.8631,23.4934]
[1672549017332,40.0,9.8699,9.8631,23.4934]
[1672549017546,76.07,9.8698,9.8631,23.4934]
[1672549017766,40.0,9.8697,9.8631,23.4934]
[1672549017982,40.0,9.8695,9.8631,23.4934]
[1672549018182,76.08,9.8694,9.8631,23.4934]
[1672549018391,40.0,9.8693,9.8631,23.4934]
[1672549018599,76.08,9.8692,9.8631,23.4934]
[1672549018811,76.08,9.8692,9.8627,113.4317]
[1672549018812,76.08,9.8694,9.8627,113.4317]
[1672549019025,76.11,9.8657,9.8627,113.4317]
[1672549019248,40.0,9.8655,9.8504,40.0]
[1672549019447,96.11,9.8654,9.8506,303.4]
[1672549019659,40.0,9.8653,9.8508,343.4]
[1672549019868,40.0,9.8651,9.8509,40.0]
[1672549020193,40.0,9.8651,9.851,303.4]
[1672549020194,96.11,9.865,9.851,303.4]
[1672549020502,40.0,9.8649,9.8512,40.0]
[1672549020715,40.0,9.8647,9.8512,343.4]
[1672549020920,96.12,9.8646,9.8514,40.0]
[1672549021137,40.0,9.8645,9.8516,303.4]
[1672549021366,96.12,9.8644,9.8523,606.8]
[1672549021578,96.12,9.8644,9.8525,40.0]
[1672549021898,96.12,9.8644,9.8528,40.0]
[1672549022095,23.9193,9.8643,9.853,303.4]
[1672549022307,23.9193,9.8643,9.8532,303.4]
[1672549022308,20.0,9.8642,9.8532,303.4]
[1672549022627,20.0,9.8642,9.8535,40.0]
[1672549022839,23.9193,9.8641,9.8538,40.0]
[1672549023162,20.0,9.864,9.854,303.4]
[1672549023471,20.0,9.864,9.8542,303.4]
[1672549023683,20.0,9.864,9.8544,303.4]
[1672549023876,20.0,9.864,9.8546,303.4]
[1672549024087,20.0,9.864,9.8549,40.0]
[1672549024297,20.0,9.864,9.8552,40.0]
[1672549024509,20.0,9.864,9.8554,303.4]
[1672549024737,20.0,9.864,9.8552,40.0]
[1672549024738,20.0,9.864,9.8556,343.4]
[1672549024929,20.0,9.864,9.8559,40.0]
[1672549025136,20.0,9.864,9.8561,303.4]
[1672549025352,20.0,9.864,9.8563,303.4]
[1672549025578,20.0,9.864,9.8565,303.4]
[1672549025789,20.0,9.864,9.8568,40.0]
[1672549025978,20.0,9.864,9.8571,40.0]
[1672549026188,20.0,9.864,9.8573,303.4]
[1672549026413,20.0,9.864,9.8575,303.4]
[1672549026620,20.0,9.864,9.8577,40.0]
[1672549026833,20.0,9.864,9.8578,343.4161448]
[1672549027046,20.0,9.864,9.8579,40.0]
[1672549027263,20.0,9.864,9.8581,40.0]
[1672549027461,20.0,9.8643,9.8583,40.0]
[1672549027677,20.0,9.8643,9.8584,343.4161448]
[1672549027900,20.0,9.8643,9.8585,40.0]
[1672549028086,20.0,9.8643,9.8586,343.4161448]
[1672549028411,20.0,9.8656,9.8587,40.0]
[1672549028636,76.11,9.8655,9.8589,40.0]
[1672549028817,20.0,9.8654,9.8588,343.4161448]
[1672549029027,76.11,9.8653,9.8588,343.4161448]
[1672549029237,20.0,9.8652,9.8588,343.4161448]
[1672549029571,76.11,9.8651,9.8588,343.4161448]
[1672549029886,20.0,9.865,9.8588,343.4161448]
[1672549030111,76.11,9.8649,9.8588,343.4161448]
[1672549030412,20.0,9.8648,9.8588,343.4161448]
[1672549030607,76.11,9.8647,9.8588,343.4161448]
[1672549030815,20.0,9.8646,9.8588,343.4161448]
[1672549031027,76.12,9.8645,9.8588,343.4161448]
[1672549031450,20.0,9.8644,9.8588,343.4161448]
[1672549031661,76.12,9.8643,9.8588,343.4161448]
[1672549031872,20.0,9.8642,9.8588,343.4161448]
[1672549032083,76.12,9.8641,9.8588,343.4161448]
[1672549032293,20.0,9.864,9.8588,343.4161448]
[1672549032503,76.12,9.8639,9.8588,343.4161448]
[1672549032946,40.0,9.8638,9.8588,343.4161448]
[1672549033159,40.0,9.8636,9.8588,343.4161448]
[1672549033352,76.12,9.8635,9.8588,343.4161448]
[1672549033548,40.0,9.8638,9.8588,343.4161448]
[1672549033549,76.12,9.8637,9.8588,343.4161448]
[1672549033765,76.12,9.8639,9.8588,343.4161448]
[1672549041126,76.12,9.8639,9.8555,40.0]
[1672549041333,76.12,9.8639,9.8558,303.4]
[1672549041664,76.12,9.8639,9.857,40.0]
[1672549041982,76.12,9.8639,9.8572,40.0]
[1672549042296,76.12,9.8639,9.8574,40.0]
[1672549042505,76.12,9.8639,9.8576,40.0]
[1672549042715,76.12,9.8639,9.8577,343.4161448]
[1672549042929,76.12,9.8639,9.8578,40.0]
[1672549043240,76.12,9.8639,9.858,40.0]
[1672549043454,76.12,9.8639,9.8582,40.0]
[1672549043643,76.12,9.8639,9.8583,343.4161448]
[1672549043857,76.12,9.8639,9.8584,40.0]
[1672549044065,76.12,9.8639,9.8585,343.4161448]
[1672549044803,76.12,9.8639,9.8586,40.0]
[1672549045019,76.12,9.8639,9.8587,343.4161448]
[1672549045862,76.12,9.8639,9.8588,40.0]
[1672549046068,76.12,9.8639,9.8589,343.4161448]
[1672549047955,76.12,9.8639,9.859,40.0]
[1672549048159,76.12,9.8639,9.8591,343.4161448]
[1672549048366,76.12,9.8639,9.8592,40.0]
[1672549048580,76.12,9.8639,9.8594,40.0]
[1672549048785,76.12,9.8639,9.8595,343.4161448]
[1672549054473,76.12,9.8639,9.8596,40.0]
[1672549054678,20.0,9.864,9.8597,343.4161448]
[1672549054889,76.12,9.8639,9.8597,343.4161448]
[1672549055114,74.51960355,9.8644,9.8597,343.4161448]
[1672549055115,40.0,9.8638,9.8597,343.4161448]
[1672549055325,40.0,9.8636,9.8541,40.0]
[1672549055539,40.0,9.8634,9.8541,40.0]
[1672549055736,76.13,9.8633,9.8546,24.8931]
[1672549055942,40.0,9.8632,9.8546,24.8931]
[1672549056161,40.0,9.863,9.8546,24.8931]
[1672549056485,40.0,9.8628,9.8546,24.8931]
[1672549056680,76.13,9.8627,9.8546,24.8931]
[1672549056890,40.0,9.8626,9.8546,24.8931]
[1672549057090,40.0,9.8624,9.8546,24.8931]
[1672549057303,40.0,9.8622,9.8546,24.8931]
[1672549057516,76.13,9.8621,9.8547,23.0189]
[1672549057725,40.0,9.862,9.8547,23.0189]
[1672549058043,40.0,9.8618,9.8547,23.0189]
[1672549058261,40.0,9.8616,9.8547,23.0189]
[1672549058475,40.0,9.8614,9.8547,23.0189]
[1672549058690,40.0,9.8612,9.8547,23.0189]
[1672549059003,40.0,9.861,9.8547,23.0189]
[1672549059215,76.14,9.8609,9.8547,23.0189]
[1672549059429,40.0,9.8608,9.8547,23.0189]
[1672549059614,40.0,9.8606,9.8547,23.0189]
[1672549059824,40.0,9.8604,9.8547,23.0189]
[1672549060034,76.15,9.8603,9.8547,23.0189]
[1672549060244,40.0,9.8602,9.8547,23.0189]
[1672549060459,40.0,9.86,9.8547,23.0189]
[1672549060686,76.15,9.8599,9.8547,23.0189]
[1672549060877,76.15,9.8603,9.8547,23.0189]
[1672549061211,76.15,9.8605,9.8547,23.0189]
[1672549061430,76.15,9.8607,9.8547,23.0189]
[1672549061953,40.0,9.861,9.8547,23.0189]
[1672549062166,76.14,9.8609,9.8547,23.0189]
[1672549063214,40.0,9.8608,9.8547,23.0189]
[1672549063409,40.0,9.8606,9.8547,23.0189]
[1672549063626,40.0,9.8604,9.8547,23.0189]
[1672549063835,76.15,9.8603,9.8547,23.0189]
[1672549064040,40.0,9.8602,9.8547,23.0189]
[1672549064252,76.15,9.8601,9.8547,23.0189]
[1672549064686,40.0,9.86,9.8547,23.0189]
[1672549064895,76.15,9.8599,9.8547,23.0189]
[1672549065111,40.0,9.8598,9.8547,23.0189]
[1672549065313,76.15,9.8597,9.8547,23.0189]
[1672549065524,76.15,9.8603,9.8547,23.0189]
[1672549065948,76.15,9.8607,9.8547,23.0189]
[1672549066154,76.13,9.8625,9.8547,23.0189]
[1672549066363,76.13,9.8625,9.8548,24.6346]
[1672549066568,40.0,9.8624,9.8548,24.6346]
[1672549066773,40.0,9.8622,9.8548,24.6346]
[1672549067091,40.0,9.862,9.8549,22.7693]
[1672549067296,40.0,9.8618,9.8549,22.7693]
[1672549067520,76.14,9.8617,9.8549,22.7693]
[1672549067728,40.0,9.8616,9.8549,22.7693]
[1672549067937,40.0,9.8614,9.8549,22.7693]
[1672549068262,76.14,9.8613,9.8549,22.7693]
[1672549068460,40.0,9.8612,9.8549,22.7693]
[1672549068661,76.14,9.8611,9.8549,22.7693]
[1672549068872,40.0,9.861,9.8549,22.7693]
[1672549069091,76.14,9.8609,9.8549,22.7693]
[1672549069291,40.0,9.8608,9.8549,22.7693]
[1672549069503,40.0,9.8606,9.8549,22.7693]
[1672549069736,40.0,9.8604,9.8549,22.7693]
[1672549069950,76.15,9.8603,9.8549,22.7693]
[1672549070144,40.0,9.8602,9.8549,22.7693]
[1672549070363,76.15,9.8601,9.8549,22.7693]
[1672549070785,76.15,9.8603,9.8549,22.7693]
[1672549071716,40.0,9.8614,9.8549,22.7693]
[1672549071920,76.14,9.8613,9.8549,22.7693]
[1672549072130,40.0,9.8612,9.8549,22.7693]
[1672549072352,40.0,9.861,9.8549,22.7693]
[1672549072564,76.14,9.8609,9.8549,22.7693]
[1672549072985,40.0,9.8608,9.8549,22.7693]
[1672549073311,40.0,9.8606,9.8549,22.7693]
[1672549073519,76.15,9.8605,9.8549,22.7693]
[1672549075201,40.0,9.8614,9.8549,22.7693]
[1672549075399,40.0,9.8612,9.8549,22.7693]
[1672549075607,76.14,9.8611,9.8549,22.7693]
[1672549075823,40.0,9.861,9.8549,22.7693]
[1672549076034,40.0,9.8608,9.8549,22.7693]
[1672549076356,40.0,9.8606,9.8549,22.7693]
[1672549076683,40.0,9.8604,9.8549,22.7693]
[1672549076872,76.15,9.8603,9.8549,22.7693]
[1672549077720,40.0,9.8608,9.8549,22.7693]
[1672549077933,40.0,9.8606,9.8549,22.7693]
[1672549078249,40.0,9.8604,9.8549,22.7693]
[1672549078467,76.15,9.8603,9.8549,22.7693]
[1672549078655,40.0,9.8602,9.8549,22.7693]
[1672549078863,76.15,9.8603,9.8549,22.7693]
[1672549078864,76.15,9.8601,9.8549,22.7693]
[1672549079083,40.0,9.8602,9.8549,22.7693]
[1672549079298,76.15,9.8601,9.8549,22.7693]
[1672549079493,40.0,9.86,9.8549,22.7693]
[1672549079709,40.0,9.8598,9.8549,22.7693]
[1672549079914,76.15,9.8597,9.8549,22.7693]
[1672549081618,40.0,9.8602,9.8549,22.7693]
[1672549081825,40.0,9.86,9.855,316.4501448]
[1672549082034,76.15,9.8599,9.855,316.4501448]
[1672549082234,40.0,9.8598,9.855,316.4501448]
[1672549082558,40.0,9.8596,9.855,316.4501448]
[1672549082885,76.15,9.8595,9.855,316.4501448]
[1672549083070,76.15,9.8597,9.855,316.4501448]
[1672549083600,76.15,9.8599,9.855,316.4501448]
[1672549084128,76.15,9.8601,9.855,316.4501448]
[1672549084340,40.0,9.8612,9.855,316.4501448]
[1672549084558,40.0,9.861,9.855,316.4501448]
[1672549084749,76.14,9.8609,9.855,316.4501448]
[1672549084958,76.14,9.8615,9.855,316.4501448]
[1672549085389,76.14,9.8617,9.855,316.4501448]
[1672549085602,76.14,9.8619,9.855,316.4501448]
[1672549086110,40.0,9.8618,9.855,316.4501448]
[1672549086325,76.14,9.8617,9.855,316.4501448]
[1672549086641,40.0,9.8616,9.855,316.4501448]
[1672549086857,40.0,9.8614,9.855,316.4501448]
[1672549087072,76.14,9.8613,9.855,316.4501448]
[1672549088109,40.0,9.8612,9.855,316.4501448]
[1672549088345,76.14,9.8611,9.855,316.4501448]
[1672549088532,74.51960355,9.8665,9.855,316.4501448]
[1672549088533,76.14,9.8615,9.855,316.4501448]
[1672549088743,40.0,9.8618,9.855,316.4501448]
[1672549088961,76.14,9.8617,9.855,316.4501448]
[1672549089288,40.0,9.8618,9.855,316.4501448]
[1672549089479,76.14,9.8617,9.855,316.4501448]
[1672549089694,40.0,9.8616,9.855,316.4501448]
[1672549089902,40.0,9.8614,9.855,316.4501448]
[1672549090117,40.0,9.8612,9.855,316.4501448]
[1672549090317,76.14,9.8611,9.855,316.4501448]
[1672549090527,40.0,9.861,9.855,316.4501448]
[1672549090859,40.0,9.8608,9.855,316.4501448]
[1672549091050,40.0,9.8606,9.855,316.4501448]
[1672549091260,76.15,9.8605,9.855,316.4501448]
[1672549091475,40.0,9.8604,9.855,316.4501448]
[1672549091684,40.0,9.8602,9.855,316.4501448]
[1672549091900,40.0,9.86,9.855,316.4501448]
[1672549092100,76.15,9.8599,9.855,316.4501448]
[1672549092530,76.15,9.8601,9.855,316.4501448]
[1672549092740,40.0,9.8602,9.855,316.4501448]
[1672549093053,76.15,9.8601,9.855,316.4501448]
[1672549093479,76.15,9.8601,9.855,315.9501448]
[1672549093692,76.13,9.8621,9.8551,315.7501448]
[1672549093897,40.0,9.862,9.8551,315.7501448]
[1672549094108,40.0,9.8618,9.8551,315.7501448]
[1672549094416,76.14,9.8617,9.8551,315.7501448]
[1672549094629,40.0,9.8618,9.8551,315.7501448]
[1672549094846,40.0,9.8616,9.8551,315.7501448]
[1672549095052,40.0,9.8614,9.8551,315.7501448]
[1672549095256,76.14,9.8613,9.8551,315.7501448]
[1672549095471,40.0,9.8612,9.8551,315.7501448]
[1672549095696,40.0,9.861,9.8551,315.7501448]
[1672549096010,76.14,9.8609,9.8551,315.7501448]
[1672549096215,76.14,9.8611,9.8551,315.7501448]
[1672549096413,76.14,9.8617,9.8551,315.7501448]
[1672549096621,76.14,9.8619,9.8551,315.7501448]
[1672549096847,40.0,9.8624,9.8551,315.7501448]
[1672549097035,40.0,9.8622,9.8551,315.7501448]
[1672549097244,76.13,9.8621,9.8551,315.7501448]
[1672549098096,40.0,9.8625,9.8551,315.7501448]
[1672549098306,40.0,9.8623,9.8551,315.7501448]
[1672549098619,40.0,9.8621,9.8552,23.2414]
[1672549098834,76.14,9.862,9.8552,23.2414]
[1672549099044,40.0,9.8619,9.8552,23.2414]
[1672549099258,40.0,9.8617,9.8552,23.2414]
[1672549099469,40.0,9.8615,9.8552,23.2414]
[1672549099679,76.14,9.8614,9.8552,23.2414]
[1672549100000,40.0,9.8613,9.8552,23.2414]
[1672549100231,76.14,9.8612,9.8552,23.2414]
[1672549100431,40.0,9.8611,9.8552,23.2414]
[1672549100637,40.0,9.8609,9.8552,23.2414]
[1672549100854,40.0,9.8607,9.8552,23.2414]
[1672549101052,76.15,9.8606,9.8552,23.2414]
[1672549101263,76.14,9.8612,9.8552,23.2414]
[1672549102213,76.14,9.8618,9.8552,23.2414]
[1672549102424,40.0,9.8617,9.8552,23.2414]
[1672549102646,40.0,9.8615,9.8552,23.2414]
[1672549102843,40.0,9.8613,9.8552,23.2414]
[1672549103051,76.14,9.8612,9.8552,23.2414]
[1672549103268,40.0,9.8611,9.8552,23.2414]
[1672549103475,40.0,9.8609,9.8552,23.2414]
[1672549103691,40.0,9.8607,9.8552,23.2414]
[1672549103907,76.15,9.8606,9.8552,23.2414]
[1672549104120,40.0,9.8607,9.8552,23.2414]
[1672549104322,40.0,9.8605,9.8552,23.2414]
[1672549104528,76.15,9.8604,9.8552,23.2414]
[1672549104746,40.0,9.8603,9.8552,23.2414]
[1672549105057,40.0,9.8601,9.8552,23.2414]
[1672549105280,40.0,9.8599,9.8552,23.2414]
[1672549105472,76.15,9.8598,9.8552,23.2414]
[1672549105682,76.15,9.8606,9.8552,23.2414]
[1672549105994,76.15,9.8608,9.8552,23.2414]
[1672549106540,40.0,9.8615,9.8552,23.2414]
[1672549106852,40.0,9.8613,9.8552,23.2414]
[1672549107040,76.14,9.8612,9.8553,315.5401448]
[1672549107252,40.0,9.8611,9.8553,315.5401448]
[1672549107474,40.0,9.8609,9.8553,315.5401448]
[1672549107679,40.0,9.8607,9.8553,315.5401448]
[1672549107894,40.0,9.8605,9.8553,315.5401448]
[1672549108093,76.15,9.8604,9.8553,315.5401448]
[1672549108310,76.15,9.8604,9.8552,23.2414]
[1672549108311,40.0,9.8603,9.8552,23.2414]
[1672549108629,40.0,9.8601,9.8552,23.2414]
[1672549108842,40.0,9.8599,9.8552,23.2414]
[1672549109165,40.0,9.8597,9.8552,23.2414]
[1672549109359,76.15,9.8596,9.8552,23.2414]
[1672549109571,40.0,9.8595,9.8552,23.2414]
[1672549109785,40.0,9.8593,9.8552,23.2414]
[1672549110108,40.0,9.8591,9.8552,23.2414]
[1672549110295,76.16,9.859,9.8552,23.2414]
[1672549110717,40.0,9.8591,9.8552,23.2414]
[1672549110926,76.16,9.859,9.8552,23.2414]
[1672549111669,40.0,9.8589,9.8552,23.2414]
[1672549111881,40.0,9.8587,9.8552,23.2414]
[1672549112203,76.16,9.8586,9.8552,23.2414]
[1672549112736,76.16,9.8592,9.8552,23.2414]
[1672549113258,40.0,9.8591,9.8552,23.2414]
[1672549113464,76.16,9.859,9.8552,23.2414]
[1672549113678,76.15,9.8604,9.8552,23.2414]
[1672549113991,40.0,9.8603,9.8552,23.2414]
[1672549114182,40.0,9.8601,9.8552,23.2414]
[1672549114395,76.15,9.86,9.8552,23.2414]
[1672549114619,40.0,9.8599,9.8552,23.2414]
[1672549114831,76.15,9.8598,9.8552,23.2414]
[1672549115036,40.0,9.8597,9.8552,23.2414]
[1672549115252,76.15,9.8596,9.8552,23.2414]
[1672549115880,40.0,9.8595,9.8552,23.2414]
[1672549116076,40.0,9.8593,9.8552,23.2414]
[1672549116290,76.16,9.8592,9.8552,23.2414]
[1672549116501,40.0,9.8591,9.8552,23.2414]
[1672549116711,76.16,9.859,9.8552,23.2414]
[1672549117248,76.16,9.8592,9.8552,23.2414]
[1672549117456,76.16,9.8594,9.8552,23.2414]
[1672549117673,40.0,9.8593,9.8552,23.2414]
[1672549117864,76.16,9.8592,9.8552,23.2414]
[1672549118076,40.0,9.8591,9.8552,23.2414]
[1672549118287,76.16,9.859,9.8552,23.2414]
[1672549119229,76.16,9.8594,9.8552,23.2414]
[1672549119563,40.0,9.8597,9.8552,23.2414]
[1672549119779,76.15,9.8596,9.8552,23.2414]
[1672549120088,98.46140355,9.8627,9.8552,23.2414]
[1672549120089,76.15,9.86,9.8552,23.2414]
[1672549120278,76.14,9.8614,9.8552,23.2414]
[1672549120699,40.0,9.8619,9.8552,23.2414]
[1672549120937,76.14,9.8618,9.8552,23.2414]
[1672549121128,40.0,9.8617,9.8552,23.2414]
[1672549121333,76.14,9.8616,9.8552,23.2414]
[1672549121560,40.0,9.8615,9.8552,23.2414]
[1672549121749,40.0,9.8613,9.8552,23.2414]
[1672549121961,40.0,9.8611,9.8552,23.2414]
[1672549122174,76.14,9.861,9.8552,23.2414]
[1672549122402,40.0,9.8609,9.8552,23.2414]
[1672549122595,40.0,9.8607,9.8552,23.2414]
[1672549122800,76.15,9.8606,9.8552,23.2414]
[1672549123236,76.14,9.8608,9.8552,23.2414]
[1672549123431,40.0,9.8615,9.8552,23.2414]
[1672549123644,40.0,9.8613,9.8552,23.2414]
[1672549123858,76.14,9.8612,9.8552,23.2414]
[1672549124066,40.0,9.8611,9.8552,23.2414]
[1672549124388,40.0,9.8609,9.8552,23.2414]
[1672549124606,76.14,9.8608,9.8552,23.2414]
[1672549124805,40.0,9.8607,9.8552,23.2414]
[1672549125015,76.15,9.8606,9.8552,23.2414]
[1672549125438,76.14,9.8608,9.8552,23.2414]
[1672549126926,40.0,9.8607,9.8552,23.2414]
[1672549127129,76.15,9.8606,9.8552,23.2414]
[1672549127343,76.14,9.861,9.8552,23.2414]
[1672549127865,76.14,9.861,9.8553,223.9961448]
[1672549128063,40.0,9.8611,9.8553,223.9961448]
[1672549128273,76.14,9.861,9.8553,223.9961448]
[1672549128473,40.0,9.8611,9.8553,223.9961448]
[1672549128690,76.14,9.861,9.8553,223.9961448]
[1672549128899,40.0,9.8609,9.8553,223.9961448]
[1672549129107,76.14,9.8608,9.8553,223.9961448]
[1672549129550,40.0,9.8607,9.8553,223.9961448]
[1672549129739,76.15,9.8606,9.8553,223.9961448]
[1672549129948,76.14,9.8614,9.8553,223.9961448]
[1672549130160,76.14,9.8616,9.8553,223.9961448]
[1672549130600,40.0,9.8615,9.8553,223.9961448]
[1672549130808,40.0,9.8613,9.8553,223.9961448]
[1672549131018,76.14,9.8612,9.8553,223.9961448]
[1672549131420,40.0,9.8611,9.8553,223.9961448]
[1672549131627,76.14,9.861,9.8553,223.9961448]
[1672549132051,40.0,9.8609,9.8553,223.9961448]
[1672549132275,76.14,9.8608,9.8553,223.9961448]
[1672549132684,40.0,9.8609,9.8553,223.9961448]
[1672549132890,40.0,9.8607,9.8553,223.9961448]
[1672549133097,76.15,9.8606,9.8553,223.9961448]
[1672549133441,40.0,9.8609,9.8553,223.9961448]
[1672549133442,76.14,9.8608,9.8553,223.9961448]
[1672549133840,40.0,9.8621,9.8553,223.9961448]
[1672549134051,40.0,9.8619,9.8553,223.9961448]
[1672549134265,76.14,9.8618,9.8553,223.9961448]
[1672549134479,40.0,9.8617,9.8553,223.9961448]
[1672549134692,40.0,9.8615,9.8553,223.9961448]
[1672549134895,40.0,9.8613,9.8553,223.9961448]
[1672549135110,76.14,9.8612,9.8553,223.9961448]
[1672549135741,40.0,9.8613,9.8553,223.9961448]
[1672549135945,40.0,9.8611,9.8553,223.9961448]
[1672549136157,40.0,9.8609,9.8553,223.9961448]
[1672549136478,76.14,9.8608,9.8553,223.9961448]
[1672549136670,76.14,9.8608,9.8553,223.4961448]
[1672549136884,76.14,9.8614,9.8553,223.4961448]
[1672549137107,76.14,9.862,9.8553,223.4961448]
[1672549137318,40.0,9.8619,9.8553,223.4961448]
[1672549137509,748.47831348,9.875,9.8553,223.4961448]
[1672549137510,76.14,9.8618,9.8554,40.0]
[1672549137726,76.13,9.8625,9.8555,223.4961448]
[1672549137944,76.13,9.8625,9.8556,40.0]
[1672549138167,76.13,9.8625,9.8557,223.4961448]
[1672549139423,76.13,9.8625,9.8553,24.605]
[1672549140776,40.0,9.8624,9.8553,24.605]
[1672549141114,76.13,9.8623,9.8553,24.605]
[1672549141322,40.0,9.8622,9.8553,24.605]
[1672549141532,40.0,9.862,9.8553,24.605]
[1672549141731,76.14,9.8619,9.8553,24.605]
[1672549141941,40.0,9.8618,9.8553,24.605]
[1672549142157,40.0,9.8616,9.8553,24.605]
[1672549142471,76.14,9.8615,9.8553,24.605]
[1672549142681,40.0,9.8614,9.8553,24.605]
[1672549142892,40.0,9.8612,9.8553,24.605]
[1672549143090,76.14,9.8611,9.8553,24.605]
[1672549143726,76.14,9.8617,9.8553,24.605]
[1672549143938,40.0,9.8616,9.8553,24.605]
[1672549144149,76.14,9.8615,9.8553,24.605]
[1672549144681,40.0,9.8618,9.8554,223.4961448]
[1672549144876,76.14,9.8617,9.8554,223.4961448]
[1672549145090,40.0,9.8616,9.8554,223.4961448]
[1672549145304,76.14,9.8615,9.8554,223.4961448]
[1672549146364,40.0,9.8614,9.8554,223.4961448]
[1672549146565,40.0,9.8612,9.8554,223.4961448]
[1672549146890,76.14,9.8611,9.8554,223.4961448]
[1672549147501,40.0,9.861,9.8554,223.4961448]
[1672549147709,76.14,9.8609,9.8554,223.4961448]
[1672549147948,40.0,9.8618,9.8554,223.4961448]
[1672549147949,20.0,9.8608,9.8554,223.4961448]
[1672549148250,40.0,9.8606,9.8554,223.4961448]
[1672549148448,40.0,9.8604,9.8554,223.4961448]
[1672549148656,96.15,9.8603,9.8554,223.4961448]
[1672549148865,40.0,9.8602,9.8554,223.4961448]
[1672549149075,76.15,9.8601,9.8554,223.4961448]
[1672549149291,76.15,9.8602,9.8554,223.4961448]
[1672549149492,40.0,9.8624,9.8554,223.4961448]
[1672549149708,76.13,9.8623,9.8554,223.4961448]
[1672549149917,74.51960355,9.8623,9.8554,223.4961448]
[1672549150122,40.0,9.8621,9.8554,223.4961448]
[1672549150451,76.13,9.862,9.8554,223.4961448]
[1672549150769,40.0,9.8619,9.8554,223.4961448]
[1672549150983,40.0,9.8617,9.8554,223.4961448]
[1672549151172,40.0,9.8615,9.8554,223.4961448]
[1672549151386,76.14,9.8614,9.8554,223.4961448]
[1672549151718,40.0,9.8613,9.8554,223.4961448]
[1672549151909,76.14,9.8612,9.8554,223.4961448]
[1672549152123,40.0,9.8611,9.8554,223.4961448]
[1672549152342,40.0,9.8609,9.8554,223.4961448]
[1672549152551,76.14,9.8608,9.8554,223.4961448]
[1672549152763,40.0,9.8607,9.8554,223.4961448]
[1672549152971,40.0,9.8605,9.8554,223.4961448]
[1672549153190,76.15,9.8604,9.8554,223.4961448]
[1672549153505,40.0,9.8603,9.8554,223.4961448]
[1672549154765,76.15,9.8604,9.8554,223.4961448]
[1672549154984,76.15,9.8606,9.8554,223.4961448]
[1672549155171,76.14,9.861,9.8554,223.4961448]
[1672549155381,40.0,9.8609,9.8554,223.4961448]
[1672549155591,40.0,9.8607,9.8554,223.4961448]
[1672549155820,76.15,9.8606,9.8554,223.4961448]
[1672549156132,40.0,9.8605,9.8554,223.4961448]
[1672549156343,40.0,9.8603,9.8554,223.4961448]
[1672549156562,40.0,9.8601,9.8554,223.4961448]
[1672549165798,40.0,9.8599,9.8554,223.4961448]
[1672549165992,76.15,9.8598,9.8554,223.4961448]
[1672549166204,40.0,9.8597,9.8554,223.4961448]
[1672549166423,40.0,9.8595,9.8554,223.4961448]
[1672549166636,76.15,9.8594,9.8554,223.4961448]